Cogmind - Beta 17 @@@ ROGUE MODE // 2026.07.26 @ 20:15:02 Player: aperiodic Result: Self-destructed Performance ------------- Evolutions (5) 2500 Regions Visited (6) 1200 Robots Destroyed (58) 290 Value Destroyed (1663) 1663 Prototype IDs (107) 2140 Alien Tech Used (0) 0 Bonus (1208) 1208 TOTAL SCORE: 9001 Bonus ------- Follower Combat Kills 408 Registered with UFD 300 Met Optimus in HQ 500 Cogmind --------- Core Integrity 567/1000 Matter 280/300 Energy 272/315 System Corruption 9% Temperature Hot (236) Movement Flying (25) Location -5/Extension Parts ------- > --- POWER (1) -------- Neutrino Core > --- PROPULSION (6) --- Cooled Nuclear Pulse Thruster Cooled Nuclear Pulse Thruster Cooled Nuclear Pulse Thruster (fused) Cooled Nuclear Pulse Thruster Impulse Thruster Array (fused) > --- UTILITY (8) ------ Medium Storage Unit Deep Structural Scanner IFF Parser Melee Analysis Suite Propulsion Shielding Improved Utility Shielding Hardened Light Armor Plating Improved System Shield > --- WEAPON (2) ------- Companion Sword > --- INVENTORY (10) --- Xenon Bombardment Thruster Surveybot 17 Chip A0-MCA's Component Scanner Hypervelocity Coil Gun Mini Grenade Launcher CPS Tube (2) Multitool Botcube Peak State ------------ > --- POWER ------------ Neutrino Core > --- PROPULSION ------- Xenon Bombardment Thruster Cooled Nuclear Pulse Thruster Cooled Nuclear Pulse Thruster Cooled Nuclear Pulse Thruster Impulse Thruster Array > --- UTILITY ---------- Medium Storage Unit Deep Structural Scanner IFF Parser Melee Analysis Suite Improved Propulsion Shielding Improved Utility Shielding Makeshift Light Armor Plating Improved System Shield > --- WEAPON ----------- Improved Remote Datajack Companion Sword > --- INVENTORY -------- Cooled Nuclear Pulse Thruster Surveybot 17 Chip A0-MCA's Component Scanner Long-range Tractor Beam Hypervelocity Coil Gun Mini Grenade Launcher CPS Tube Multitool Botcube [Rating: 92] Favorites ----------- Power Ion Engine Engine Ion Engine Power Core Neutrino Core Reactor Light Particle Reactor Propulsion Cooled Nuclear Pulse Thruster Treads Light Treads Leg Shield Leg Wheel Compact Wheel Hover Unit Improved Antigrav System Flight Unit Cooled Nuclear Pulse Thruster Utility Self-contained Transmogrifier Device Self-contained Transmogrifier Storage Medium Storage Unit Processor Experimental Signal Interpreter Hackware Improved System Shield Protection Scrap Shield Weapon Subdweller Beam Cannon Energy Gun Medium Laser Energy Cannon Subdweller Beam Cannon Ballistic Gun Hypervelocity Railgun Ballistic Cannon Linear Accelerator Launcher Heavy Proton Missile Launcher Special Weapon CPS Tube Impact Weapon Shock Maul Slashing Weapon Ripper Piercing Weapon Heavy Pick Build | -11 -10 -10 -7 -7 -5 -5 ------- Run | Yrd Mat Sub Rec Scr Fac Ext Slots Evolved 10 | . . . . . 10 . Power . | . . . . . . . Propulsion 4 | . . . . . 4 . Utility 6 | . . . . . 6 . Weapon . | . . . . . . . Parts Attached 78 | 9 8 15 . 15 21 10 Power 10 | 1 2 2 . 2 1 2 Engine 6 | 1 2 2 . 1 . . Core 4 | . . . . 1 1 2 Reactor . | . . . . . . . Propulsion 16 | 2 3 2 . 2 7 . Treads 4 | . 3 . . 1 . . Leg 1 | . . . . 1 . . Wheel 4 | 2 . 2 . . . . Hover . | . . . . . . . Flight 7 | . . . . . 7 . Utility 28 | 3 2 5 . 4 11 3 Device 9 | 2 1 . . 3 3 . Storage 5 | 1 1 1 . . 1 1 Processor 4 | . . . . . 4 . Hackware 1 | . . . . . 1 . Protection 9 | . . 4 . 1 2 2 Artifact . | . . . . . . . Weapon 24 | 3 1 6 . 7 2 5 Energy Gun 5 | 3 1 1 . . . . Energy Cannon 6 | . . 3 . 1 . 2 Ballistic Gun 3 | . . . . 2 . 1 Ballistic Cannon 2 | . . . . 2 . . Launcher 2 | . . 1 . . 1 . Special Weapon 4 | . . . . 1 1 2 Impact Weapon . | . . . . . . . Slashing Weapon 2 | . . 1 . 1 . . Piercing Weapon . | . . . . . . . Special Melee Weapon . | . . . . . . . Unidentified Prototypes 3 | . . . . 2 . 1 Parts Lost 8 | . 1 2 . . 5 . Power 2 | . 1 1 . . . . Propulsion 1 | . . . . . 1 . Utility 3 | . . 1 . . 2 . Weapon 2 | . . . . . 2 . Highest Loss Streak 2 | . 1 2 . . 1 . To Critical Strikes . | . . . . . . . Average Backups 2 | 4 8 6 19 1 8 8 Power . | . 1 . 3 . . . Propulsion . | 2 3 1 3 . . 1 Utility 1 | . . 1 3 . 2 2 Weapon . | 1 2 2 8 . 2 2 Tool/Special . | . . . . . . . Unused Backups 26 | 1 3 5 . 9 3 5 Power 3 | . . . . 2 . 1 Propulsion 5 | . 3 . . 2 . . Utility 5 | . . 1 . . 1 3 Weapon 8 | 1 . 2 . 5 . . Tool/Special 5 | . . 2 . . 2 1 Average Slot Usage (%) 93 | . 99 85 85 94 64 88 Engine 3 | . 13 13 14 2 . . Core 4 | . . . . 4 3 5 Reactor 5 | . . . . 6 . . Treads 2 | . 26 3 . 1 . . Leg 4 | . . . . 5 . . Wheel 3 | . 1 24 28 1 . . Hover 5 | . . . . 6 . . Flight 9 | . . . . 10 20 29 Device 18 | . 14 . . 21 8 11 Storage 2 | . 14 2 14 1 5 5 Processor 1 | . . . . 1 8 5 Protection 3 | . . 11 . 2 6 17 Energy Gun 4 | . 28 3 . 3 . . Energy Cannon 6 | . . 12 14 6 . . Ballistic Gun 2 | . . . . 2 . . Ballistic Cannon 4 | . . . . 6 . . Launcher 3 | . . . . 3 . . Slashing Weapon 3 | . . 11 14 2 3 3 Peak Build Rating 92 | 7 8 18 18 59 89 92 Average Rating 44 | 5 7 12 18 48 64 85 On Entrance 24 | . 7 8 18 18 37 86 Avg Prop Armor Cover (%) 10 | . . 1 . 11 . . Naked Turns . | . . . . . . . Heaviest Build 54 | 12 20 54 54 54 39 40 Greatest Support 75 | 20 40 40 26 75 40 52 Greatest Overweight (x) 15 | 2 . 2 2 15 1 . Average Overweight (x) 2 | . . 1 2 3 . . Largest Inventory Capacity 25 | 8 10 25 25 25 10 10 Average Capacity 5 | 7 8 8 25 5 10 10 Most Carried 25 | 8 10 25 25 25 10 10 Average Carried 2 | 4 8 7 25 1 9 9 Final Capacity 25 | 8 10 25 25 10 10 10 Final Carried 25 | 7 10 25 25 10 10 8 Transmogrified Parts 480 | . . . . 480 . . Integrity Recovered 753 | . . . . 753 . . Class Distribution -------------------- 92% | Mutant 3% | Scavenger-Mutant 3% | Sprinter Dominant Class ---------------- Mutant | -10/Materials Mutant | -10/Subcaves Mutant | -7/Recycling Mutant | -7/Scraptown Sprinter | -5/Factory Sprinter | -5/Extension Resources | -11 -10 -10 -7 -7 -5 -5 ----------- Run | Yrd Mat Sub Rec Scr Fac Ext Matter Collected 1986 | 290 90 410 . 120 233 843 Remotely 64 | 64 . . . . . . Salvage Created 2846 | 181 502 925 . . 74 1164 Parts 159 | 18 34 57 . . 9 41 Haulers Intercepted 4 | . 2 . . . . 2 Recyclers Shooed 4 | . 1 . . . . 3 Parts Field Recycled . | . . . . . . . Retrieved Matter . | . . . . . . . Parts Self-Destructed 26 | . . 26 . . . . Prevented . | . . . . . . . Parts Restored . | . . . . . . . Kills | -11 -10 -10 -7 -7 -5 -5 ------- Run | Yrd Mat Sub Rec Scr Fac Ext Combat Hostiles Destroyed 38 | . 8 19 . . 5 6 Melee 7 | . . 3 . . 1 3 Guns 16 | . 8 5 . . . 3 Cannons 9 | . . 9 . . . . AOE 4 | . . . . . 4 . Classes Destroyed 14 | 2 6 3 . . . 3 Worker 2 | . 2 . . . . . Builder 1 | . 1 . . . . . Tunneler 5 | 5 . . . . . . Hauler 4 | . 2 . . . . 2 Recycler 4 | 1 . . . . . 3 Turret 2 | . . 2 . . . . Watcher 2 | . 2 . . . . . Swarmer 11 | . 2 4 . . 5 . Grunt 6 | . 6 . . . . . Sentry 4 | . . . . . . 4 Hunter 1 | . . . . . . 1 Behemoth 1 | . . . . . . 1 Artisan 2 | . . 2 . . . . Subdweller 15 | . . 15 . . . . Best Kill Streak 5 | 5 4 3 . . 4 3 Combat Bots Only 4 | . 3 3 . . 4 2 Max Kills in Single Turn 2 | 1 1 1 . . 2 1 Gunslinging . | . . . . . . . Exploded 2 | . . . . . 2 . Melee 1 | . . 1 . . 1 1 Uniques/NPCs Destroyed . | . . . . . . . Combat | -11 -10 -10 -7 -7 -5 -5 -------- Run | Yrd Mat Sub Rec Scr Fac Ext Hostile Shots Fired 300 | . 47 100 . . 99 54 Missed 121 | . 19 28 . . 46 28 Hits 179 | . 28 72 . . 53 26 Projectile 179 | . 28 72 . . 53 26 Critical Strikes 5 | . 1 . . . 1 3 Actively Blocked 2 | . . . . . . 2 Damage Taken 3074 | . 318 1125 . . 969 662 Core 643 | . 50 160 . . 239 194 Absorbed by Shields 27 | . . . . . . 27 Redirected to Shielding 157 | . . . . . 39 118 Regen/Repaired (Parts) 350 | . . . . . 350 . Core Remaining (%) 58 | 100 . . . 16 . . Volleys Fired 197 | 12 52 57 . . 4 72 Largest 2 | 2 2 2 . . 1 1 Hottest 160 | 90 100 160 . . 30 81 Shots Fired 280 | 24 104 78 . . 4 70 Gun 200 | 24 104 38 . . . 34 Cannon 46 | . . 38 . . . 8 Launcher 13 | . . 2 . . 4 7 Special 21 | . . . . . . 21 Kinetic 36 | . . 2 . . . 34 Thermal 204 | 24 104 76 . . . . Explosive 11 | . . . . . 4 7 Electromagnetic 8 | . . . . . . 8 Robot Hit Streak 24 | 5 10 24 . . 1 16 Robot Miss Streak 4 | 1 4 2 . . 2 4 Penetration Max 1 | . . . . . . 1 Secondary Targets 1 | . 1 . . . . . Max Gunslinging Chain 1 | . 1 . . . . . Shots Hit Robots 236 | 15 62 74 . . 11 74 Core Hits 89 | 7 27 28 . . 6 21 Critical Kills 4 | . . 1 . . . 3 Critical Parts Destroyed 3 | . . . . . . 3 Critical Strikes 15 | . 2 3 . . . 10 Burn 4 | . 2 2 . . . . Meltdown 1 | . . 1 . . . . Destroy 10 | . . . . . . 10 Melee Attacks 125 | . . 45 1 . 35 44 Impact . | . . . . . . . Slashing 125 | . . 45 1 . 35 44 Piercing . | . . . . . . . Sneak Attacks 7 | . . 2 . . . 5 Combat Hostiles . | . . . . . . . Follow-up Attacks . | . . . . . . . Damage Inflicted 5399 | 188 801 1843 . . 805 1762 Guns 1660 | 188 761 488 . . . 223 Cannons 769 | . . 769 . . . . Explosions 409 | . . 78 . . 331 . Melee 2521 | . . 508 . . 474 1539 Ramming 40 | . 40 . . . . . Kinetic 301 | . . 78 . . . 223 Thermal 2206 | 188 761 1257 . . . . Explosive 331 | . . . . . 331 . Electromagnetic . | . . . . . . . Impact . | . . . . . . . Slashing 2521 | . . 508 . . 474 1539 Piercing . | . . . . . . . Highest Corruption 9 | . . . . . 9 9 Average Corruption 8 | . . . . . 5 9 Corruption Purged . | . . . . . . . Corruption Blocked . | . . . . . . . Effects 69 | . . . . . 14 55 Message Errors 14 | . . . . . 3 11 Matter Fused 14 | . . . . . 3 11 Heat Flow Errors 12 | . . . . . 2 10 Energy Discharges 11 | . . . . . 4 7 Parts Rejected 1 | . . . . . . 1 Parts Fused 1 | . . . . . . 1 Data Loss (minor) 7 | . . . . . 1 6 Data Loss (major) 5 | . . . . . 1 4 Misfires 1 | . . . . . . 1 Weapon Failures 3 | . . . . . . 3 Overload Shots . | . . . . . . . Overflow Damage 324 | . . 29 . . 98 197 Projectiles . | . . . . . . . Explosions 4 | . . . . . 4 . Melee 320 | . . 29 . . 94 197 Knockbacks 1 | . 1 . . . . . Impact 1 | . 1 . . . . . Kinetic . | . . . . . . . Secondary . | . . . . . . . Self-Inflicted Damage 49 | . . . . . 49 . Shots 1 | . . . . . 1 . Rammed 8 | . 8 . . . . . Targets Rammed 9 | . 9 . . . . . Kicked . | . . . . . . . Crushed 1 | . 1 . . . . . Highest Temperature 305 | 140 300 78 . . 249 305 Average Temperature 86 | 51 76 17 . . 131 108 Received Heat Transfer 636 | . 168 255 . . 99 114 Effects 3 | . 1 . . . . 2 Energy Bleed 3 | . 1 . . . . 2 Siege Activations . | . . . . . . . Martial Activations . | . . . . . . . Shielding Activations . | . . . . . . . Robots Disrupted . | . . . . . . . Combat Hostiles . | . . . . . . . Robots Corrupted . | . . . . . . . Combat Hostiles . | . . . . . . . Parts Fried . | . . . . . . . Impact Corruptions . | . . . . . . . Robots Melted 2 | . . 2 . . . . Combat Hostiles 2 | . . 2 . . . . Parts Melted 6 | . 4 2 . . . . Heat Transferred 5009 | 496 2216 2297 . . . . Parts Sabotaged . | . . . . . . . Parts Stolen . | . . . . . . . Parts Stripped . | . . . . . . . Power Chain Reactions . | . . . . . . . Alert | -11 -10 -10 -7 -7 -5 -5 ------- Run | Yrd Mat Sub Rec Scr Fac Ext Maximum Alert Level 2 | . . . . . 2 1 Low Security (%) 89 | 100 100 . 100 . 60 85 Level 1 6 | . . . . . 13 14 Level 2 4 | . . . . . 25 . Level 3 . | . . . . . . . Level 4 . | . . . . . . . Level 5 . | . . . . . . . High Security . | . . . . . . . Max Security . | . . . . . . . Peak Influence 444 | 10 82 . 26 . 444 244 Initial 192 | . 3 . 26 . . 192 Average 75 | 2 15 . 5 . 222 102 Influence Increases 2143 | 30 353 235 1 . 866 658 Destroy 0b10 Robot/C 680 | . 160 120 . . 100 300 Destroy 0b10 Robot/NC 105 | 30 35 . . . . 40 Destroy Leader 98 | . 38 10 . . 10 40 Allied During Kill 55 | . . . . . . 55 Successful Hack 28 | . . . . . 15 13 Disable Machine 75 | . . . . . 30 45 Anti-Garrison Action 200 | . . . . . 200 . Destroy Structure 137 | . . . 1 . 76 60 Partial Spotted 45 | . . . . . 30 15 Lose Combat Pursuer 720 | . 120 105 . . 405 90 Influence Decreases 1919 | 25 354 183 57 . 472 828 Entered New Map 237 | . 2 3 30 . . 202 Time Decay 1302 | 25 342 160 27 . 322 426 Search Patrol Dispatched 100 | . . . . . 100 . Lost Part 80 | . 10 20 . . 50 . Lost Ally 200 | . . . . . . 200 Squads Dispatched 14 | . 2 . . . 8 4 Investigation 8 | . 2 . . . 4 2 Extermination 2 | . . . . . 2 . Reinforcement 3 | . . . . . 1 2 Assault . | . . . . . . . Garrison 1 | . . . . . 1 . Intercept . | . . . . . . . Searches Triggered 1 | . . . . . 1 . Construction Impeded 1 | . . . . . . 1 Haulers Reinforced . | . . . . . . . Active Scanning Responses . | . . . . . . . Cargo Convoy Interrupts . | . . . . . . . Stealth | -11 -10 -10 -7 -7 -5 -5 --------- Run | Yrd Mat Sub Rec Scr Fac Ext Distress Signals 4 | . 1 . . . 2 1 Communications Jammed . | . . . . . . . Distress Signals . | . . . . . . . Times Spotted 111 | . 25 25 . . 37 24 Peak Tracking Total 11 | . 5 6 . . 11 8 Tactical Retreats 23 | . 6 5 . . 10 2 Traps | -11 -10 -10 -7 -7 -5 -5 ------- Run | Yrd Mat Sub Rec Scr Fac Ext Traps Triggered 5 | . 1 1 . . . 3 Indirectly . | . . . . . . . Trap Hack Attempts . | . . . . . . . Triggered . | . . . . . . . Disarmed . | . . . . . . . Reprogrammed . | . . . . . . . Reused . | . . . . . . . Traps Extracted . | . . . . . . . Installed . | . . . . . . . Triggered . | . . . . . . . Most Traps Carried 3 | . . 3 3 3 . . Machines | -11 -10 -10 -7 -7 -5 -5 ---------- Run | Yrd Mat Sub Rec Scr Fac Ext Machines Disabled 11 | . . 4 . . 2 5 Max in Single Turn 3 | . . 3 . . 1 1 Garrison Access 1 | . . . . . 1 . Machines Repaired . | . . . . . . . Machines Dismantled . | . . . . . . . Machines Sabotaged . | . . . . . . . Overloaded Fab Kills . | . . . . . . . Hacking | -11 -10 -10 -7 -7 -5 -5 --------- Run | Yrd Mat Sub Rec Scr Fac Ext Machines Accessed 27 | . . 1 . 3 12 11 Terminals 13 | . . . . . 3 10 Fabricators . | . . . . . . . Repair Stations 2 | . . . . . 2 . Recycling Units 4 | . . . . . 3 1 Scanalyzers 2 | . . . . . 2 . Garrison Access 2 | . . . . . 2 . Total Hacks 77 | . . 1 . 24 30 22 Successful 47 | . . 1 . 24 15 7 Failed 30 | . . . . . 15 15 Catastrophic 7 | . . . . . 1 6 Database Lockouts . | . . . . . . . Manual 17 | . . . . . 11 6 Terminals 30 | . . . . . 9 21 Fabricators . | . . . . . . . Repair Stations 6 | . . . . . 6 . Recycling Units 7 | . . . . . 6 1 Scanalyzers 4 | . . . . . 4 . Garrison Access 5 | . . . . . 5 . Terminal Hacks 34 | . . 1 . 24 3 6 Record 16 | . . . . 16 . . Robot Analysis 7 | . . . . 7 . . Prototype ID Bank 1 | . . . . . 1 . Open Door 7 | . . . . 1 . 6 Terminal Index 1 | . . . . . 1 . Locate Traps 1 | . . . . . 1 . Proto ID Catalog 1 | . . 1 . . . . Fabricator Hacks . | . . . . . . . Repair Station Hacks 4 | . . . . . 4 . Scan Component 2 | . . . . . 2 . Repair 2 | . . . . . 2 . Recycling Unit Hacks . | . . . . . . . Scanalyzer 2 | . . . . . 2 . Insert Component 1 | . . . . . 1 . Analyze 1 | . . . . . 1 . Garrison Access Hacks . | . . . . . . . Unauthorized Hacks 7 | . . . . . 6 1 Terminals 3 | . . . . . 2 1 Track 1 | . . . . . 1 . Botnet 2 | . . . . . 1 1 Fabricators . | . . . . . . . Repair Stations . | . . . . . . . Recycling Units 3 | . . . . . 3 . Fedlink 3 | . . . . . 3 . Scanalyzers . | . . . . . . . Garrison Access 1 | . . . . . 1 . Jam 1 | . . . . . 1 . Data Cores Recovered . | . . . . . . . Used . | . . . . . . . Hacking Detections 15 | . . . . . 8 7 Full Trace Events 2 | . . . . . . 2 Feedback Events . | . . . . . . . Feedback Blocked . | . . . . . . . Robot Schematics Acquired . | . . . . . . . Robots Built . | . . . . . . . Authchips . | . . . . . . . Time . | . . . . . . . Total Robot Build Rating . | . . . . . . . Part Schematics Acquired 1 | . . . . . 1 . Parts Built . | . . . . . . . Authchips . | . . . . . . . Time . | . . . . . . . Total Part Build Rating . | . . . . . . . Part Studies Acquired . | . . . . . . . Parts Repaired 2 | . . . . . 2 . Time 133 | . . . . . 133 . Parts Recycled . | . . . . . . . Recycled Matter . | . . . . . . . Retrieved Matter . | . . . . . . . Retrieved Components . | . . . . . . . Parts Scanalyzed 1 | . . . . . 1 . Part Schematics Acquired 1 | . . . . . 1 . Parts Damaged . | . . . . . . . Bothacking | -11 -10 -10 -7 -7 -5 -5 ------------ Run | Yrd Mat Sub Rec Scr Fac Ext Used RIF Installer . | . . . . . . . Robots Hacked 1 | . . . . . . 1 Non-combat 1 | . . . . . . 1 Combat . | . . . . . . . Robot Hacks Applied 1 | . . . . . . 1 check_alert 1 | . . . . . . 1 Relay Couplers Released . | . . . . . . . Fabnet Peak Effective % . | . . . . . . . Robots Rewired 8 | . . . . . . 8 Allies Hacked . | . . . . . . . Hacks Repelled . | . . . . . . . Allies | -11 -10 -10 -7 -7 -5 -5 -------- Run | Yrd Mat Sub Rec Scr Fac Ext Total Allies 14 | . . . . . . 14 Largest Group 4 | . . . . . . 4 Highest-Rated Group 140 | . . . . . . 140 Highest-Rated Ally 39 | . . . . . . 39 Initial UFD Resources 54 | . . . . . 38 54 Total Orders 3 | . . . . . . 3 STAY 2 | . . . . . . 2 FOLLOW 1 | . . . . . . 1 Ally Attacks 107 | . . . . . . 107 Total Damage 1953 | . . . . . . 1953 Kills 13 | . . . . . . 13 Allies Corrupted . | . . . . . . . Allies Melted . | . . . . . . . Intel | -11 -10 -10 -7 -7 -5 -5 ------- Run | Yrd Mat Sub Rec Scr Fac Ext Active Infowar (turns) 14993 | 10 2383 232 . 10357 416 1595 Optics 498 | . . . . 498 . . Sensors 1090 | . . . . 1090 . . IFF 3502 | . . . . 1493 414 1595 Terrain 1836 | . . . . 1836 . . Structural 53 | . . . . . 2 51 Traps 1910 | . . . . 1910 . . Seismic 2625 | 10 2383 232 . . . . Decoding 1181 | . . . . 1181 . . Triangulation 1612 | . . . . 1612 . . Cloaking 155 | . . . . 155 . . Spoofing 138 | . . . . 138 . . Jamming 444 | . . . . 444 . . Robot Analysis Total 7 | . . . . 7 . . Derelict Logs Recovered 2 | . . 2 . . . . Drone Launches . | . . . . . . . Drone Recoveries . | . . . . . . . Exploration | -11 -10 -10 -7 -7 -5 -5 ------------- Run | Yrd Mat Sub Rec Scr Fac Ext Turns Passed 57774 | 113 2383 5673 181 47005 824 1595 Spaces Moved 25593 | 59 877 3852 149 17243 1521 1892 Core 5952 | 4 . . . 5948 . . Treads 1850 | . 757 370 . 723 . . Legs 2158 | . . . . 2158 . . Wheels 4943 | 55 120 3482 149 1137 . . Hover 942 | . . . . 942 . . Flight 9748 | . . . . 6335 1521 1892 Fastest Speed 12 | 50 80 80 120 45 25 12 Average Speed 206 | 82 149 117 120 265 31 25 Slowest Speed 800 | 150 160 240 120 800 125 26 Overloaded Moves 55 | . . . . . . 55 Propulsion Burnouts . | . . . . . . . Robots Hopped 27 | . . . . . 11 16 Potential Cave-ins 6 | . . . . . . 6 Cave-ins Triggered . | . . . . . . . Exploration Rate (%) 60 | 4 98 96 33 66 29 95 Regions Visited 6 Branch Regions 4 Pre-discovered Areas 6 | . . 2 . 3 1 . Known Exits Taken 2 | . . . . 1 1 . Unknown Exits Taken 4 | 1 1 1 1 . . . Scrap Searched 16 | . . 13 . 3 . . Spaces Dug 25 | . . 1 1 . 19 4 Terrain Destroyed 149 | . . 34 1 . 37 77 Melee 25 | . . 1 1 . 19 4 Projectile 4 | . . 4 . . . . AOE 120 | . . 29 . . 18 73 Terrain Rammed . | . . . . . . . Walls Destroyed . | . . . . . . . Machines Disabled . | . . . . . . . Actions | -11 -10 -10 -7 -7 -5 -5 --------- Run | Yrd Mat Sub Rec Scr Fac Ext Total 29980 | 95 1850 4827 149 18385 1801 2873 Wait 3756 | 6 887 765 . 1097 202 799 Move 25535 | 58 876 3851 148 17242 1498 1862 Hop 25 | . . . . . 11 14 Pick Up 63 | 8 7 30 . 10 5 3 Fast Attach 54 | 8 1 7 . 16 17 5 Attach 12 | . . 1 . 1 6 4 Detach 10 | . . 1 . 1 5 3 Swap 58 | 1 8 29 . . 8 12 Drop 75 | 2 10 23 . 18 10 12 Fire 197 | 12 52 57 . . 4 72 Melee 125 | . . 45 1 . 35 44 Ram . | . . . . . . . Kick . | . . . . . . . Crush 9 | . 9 . . . . . Escape Stasis 42 | . . . . . . 42 Rewire . | . . . . . . . Trap . | . . . . . . . Miscellaneous 19 | . . 18 . . . 1 Route ------- -11/Scrapyard -10/Materials (discovered 5 exits: [*Mat x3] / [*Min] / *Sub) -10/Subcaves (discovered 3 exits: [*Mat x2] / [*Rec]) -7/Recycling -7/Scraptown (discovered 2 exits: *Fac x2) -5/Factory (discovered 6 exits: *Fac x3 / Upp x2 / *Ext) -5/Extension (discovered 2 exits: *Fac / [*Cet]) History --------- Turn | Location | Event 15 | -11/Scrapyard | Discovered new exit (range 14) 114 | -11/Scrapyard | Entered Materials 207 | -10/Materials | Discovered new exit (range 11) 309 | -10/Materials | Build established: Mutant 560 | -10/Materials | Discovered new exit (range 3) 614 | -10/Materials | Derelicts attacked the area 667 | -10/Materials | Discovered new exit (range 6) 2022 | -10/Materials | Discovered new exit (range 15) 2271 | -10/Materials | Discovered new exit (range 7) 2497 | -10/Materials | Entered Subcaves 2498 | -10/Subcaves | Approached by a straggling Scientist 2837 | -10/Subcaves | Core integrity fell below 50% 3089 | -10/Subcaves | Discovered new exit (range 8) 3274 | -10/Subcaves | Build established: Subdweller-Mutant 3486 | -10/Subcaves | Shifting Twisted Machinery released Ripper 3510 | -10/Subcaves | Shifting Twisted Machinery released Sub. Shrapnel Launcher 3785 | -10/Subcaves | Build established: Mutant 4029 | -10/Subcaves | Disturbed a concealed Subdweller 4062 | -10/Subcaves | Disturbed a concealed Subdweller 4338 | -10/Subcaves | Build established: Scavenger-Mutant 5292 | -10/Subcaves | Build established: Mutant 5545 | -10/Subcaves | Discovered new exit (range 14) 5829 | -10/Subcaves | Learned location of Zion (-7) 5829 | -10/Subcaves | Met a Zionite searching for "candidates" 5900 | -10/Subcaves | Ambushed by angry Subdweller bent on revenge 6071 | -10/Subcaves | Build established: Scavenger-Mutant 6115 | -10/Subcaves | Learned location of 1 exit from Materials 6116 | -10/Subcaves | Visited 4L-MR0's lab 6574 | -10/Subcaves | Core integrity fell below 20% 6856 | -10/Subcaves | Build established: Mutant 7169 | -10/Subcaves | Discovered new exit (range 16) 7575 | -10/Subcaves | Found Prototype Device 7581 | -10/Subcaves | Found Arachnoskeleton 8170 | -10/Subcaves | Entered Recycling 8321 | -7/Recycling | Scanned before Scraplab entrance 8337 | -7/Recycling | Entered Scraplab 8347 | -7/Recycling | Discovered new exit (range 3) 8351 | -7/Recycling | Entered Scraptown 8475 | -7/Scraptown | Visited UFD Registry 8475 | -7/Scraptown | Registered with UFD as "Electropod" 8516 | -7/Scraptown | Visited Cartography Club 8536 | -7/Scraptown | Visited Junk Cannon Lab 8569 | -7/Scraptown | Visited Modified Component R&D 8594 | -7/Scraptown | Visited A0-MCA Data Center 8611 | -7/Scraptown | Visited Derelict Rescue Squad 8626 | -7/Scraptown | Visited Botcube Research 8659 | -7/Scraptown | Delivered Scrap Shield to a Scientist 8753 | -7/Scraptown | Visited Analyses Database 8781 | -7/Scraptown | Visited Sword Containment 9414 | -7/Scraptown | Visited Assassins FH 9665 | -7/Scraptown | Identified Sfc. Transmogrifier 10089 | -7/Scraptown | Visited CR-KLE's Repair Center 12643 | -7/Scraptown | Found Surveybot 17 Chip 54482 | -7/Scraptown | Given an A+ rating by A0-MCA 54485 | -7/Scraptown | Found A0-MCA's Component Scanner 54550 | -7/Scraptown | Learned location of Storage (-7) 54550 | -7/Scraptown | Learned location of Extension (-5) 54550 | -7/Scraptown | Learned 16 Materials zone layouts 54550 | -7/Scraptown | Learned 24 Factory zone layouts 54550 | -7/Scraptown | Learned 16 Lower Caves zone layouts 54550 | -7/Scraptown | Learned 8 Upper Caves zone layouts 54550 | -7/Scraptown | Learned 8 Proximity Caves zone layouts 54550 | -7/Scraptown | Learned Factory emergency access door positions 54550 | -7/Scraptown | Learned location of 3 exits from Factory 54550 | -7/Scraptown | Learned location of 2 exits from Upper Caves 54550 | -7/Scraptown | Identified exit to Factory 54560 | -7/Scraptown | Found Deep Structural Scanner 54725 | -7/Scraptown | Found Prototype Slashing Weapon 54725 | -7/Scraptown | Identified Companion Sword 54943 | -7/Scraptown | Found Botcube 55277 | -7/Scraptown | Met Optimus 55277 | -7/Scraptown | Accepted into 0bPrime 55356 | -7/Scraptown | Entered Factory 55356 | -5/Factory | Evolved 10 slots: Propulsion x4, Utility x6 55357 | -5/Factory | Identified exit to Factory 55358 | -5/Factory | Identified exit to Extension 55358 | -5/Factory | Identified exit to Upper Caves 55394 | -5/Factory | Loaded intel: 8 recycling unit locations 55429 | -5/Factory | Spotted B-75 Beast 55497 | -5/Factory | Discovered exit to Factory (range 5) 55656 | -5/Factory | Search patrols dispatched 55745 | -5/Factory | Learned location of Protoforge (-2) 55901 | -5/Factory | Garrison activated, responded to threat 56014 | -5/Factory | Build established: Sprinter 56098 | -5/Factory | Repaired Cld. Nuclear Pulse Thruster 56146 | -5/Factory | Repaired Mak. Light Armor Plating? 56180 | -5/Factory | Entered Extension 56276 | -5/Extension | Rescued a captive Derelict 57047 | -5/Extension | Spotted B-75 Beast 57050 | -5/Extension | Spotted B-75 Beast 57056 | -5/Extension | Rescued a captive Derelict 57257 | -5/Extension | Rescued a captive Derelict 57276 | -5/Extension | Rescued a captive Derelict 57295 | -5/Extension | Rescued a captive Derelict 57385 | -5/Extension | Lost 6 allies 57445 | -5/Extension | Discovered exit to Factory (range 10) 57445 | -5/Extension | Discovered new exit (range 6) 57613 | -5/Extension | Destroyed B-75 Beast 57641 | -5/Extension | Allies destroyed B-75 Beast 57644 | -5/Extension | Lost 3 allies 57655 | -5/Extension | Disrupted transfer network 57671 | -5/Extension | Rescued a captive Derelict 57673 | -5/Extension | Rescued a captive Derelict 57775 | -5/Extension | Self-destructed Last Messages --------------- 57671_ Acquired Rnf. Deuterium Engine. 57671_ NE-HL4(g): "Time for some payback!" 57673_ R-10 Processor destroyed. 57673_ CL-73Y(b): "Free at last!" 57679_ Connecting with Recycling Unit... 57683_ System corrupted: Substantial component data lost. 57693_ Connecting with Door Terminal... 57694_ Dropped Rnf. Deuterium Engine. Companion Sword: "This is my sad face." 57698_ System corrupted: Substantial component data lost. 57701_ System corrupted: Lrn. Proton Cannon failed to cycle. 57736_ Dropped Lrn. Proton Cannon. 57756_ System corrupted: Heat flow error (+294). 57758_ R-10 Processor inserts Com. Wheel into recycling unit. 57758_ Connecting with Recycling Unit... 57774_ Overheating: Energy bleed (-29). Map ----- +----------------------------------------------------+ | | | | | | | | | | | | | | | | | | | | | | | | | | | | | | | | | | | | | ?????????????????????????????????????????????????? | | ?????????????????????????????????????????????????? | | ?????????????????????????????????????????????????? | | ?????????????????????????????????????????????????? | | ???????????????????#######???????????????????????? | | ???????????????????# ] ######################### | | ????????############ | | ????????## @ g h b | | ##??????## ######### | | #???????# #???????# ######################### | | #???????# ###?????### ###???????????????????????? | | #???????# # #??????#T*#?????????????????????????? | | ######### + "??????##"#?????????????????????????? | | # #???????????????????????????????????? | | ### ###???????????????????????????????????? | | # #?????????????????????????????????????? | | + #?????????????????????????????????????? | | ##########?????????????????????????????????????? | | #?##???????????????????????????????????????????? | | #??????????????????????????????????????????????? | | ###??????????????????????????????????????????????? | | ?????????????????????????????????????????????????? | | ?????????????????????????????????????????????????? | | ?????????????????????????????????????????????????? | | ?????????????????????????????????????????????????? | | ?????????????????????????????????????????????????? | | ?????????????????????????????????????????????????? | | ?????????????????????????????????????????????????? | | ?????????????????????????????????????????????????? | | ?????????????????????????????????????????????????? | | ?????????????????????????????????????????????????? | | ?????????????????????????????????????????????????? | +----------------------------------------------------+ Best States ------------- Heat Dissipation 40 Coolant Potential 65 Energy Generation 33 Energy Capacity 1100 Matter Stores 300 Matter Capacity 700 Sight Range 24 Robot Scan Range 20 Terrain Scan Range 18 Terrain Scan Density 10 Jamming Range 14 Cloak Strength 4 Armor Coverage 800 Resistance: KI 30 Resistance: TH 30 Core Shielding 30 Propulsion Shielding 90 Utility Shielding 90 Evasion (%) 67 Targeting Accuracy 6 Melee Accuracy 5 Armor Integrity Analysis 30 Recoil Reduction 2 Matter Filtering 50 Energy Filtering 30 Salvage Targeting 3 Defensive Hacking 14 Item Schematics ----------------- CPS Tube | -5/Factory | Scanalyzed Robot Schematics ------------------ None Fabricated ------------ Nothing Repaired ---------- Cld. Nuclear Pulse Thruster | 7% | -5/Factory Mak. Light Armor Plating | 5% | -5/Factory Studied --------- None Alien Tech Used ----------------- None Achievements -------------- Junior Dev Challenges ------------ None Game ------ Seed HypercooledLongswordEngine Manual? 0 Play Time 03:05:40 Cumulative 777.5 hours Start 2026.07.26 @ 16:57:53 End 2026.07.26 @ 20:15:02 Sessions 1 Manual Loads 0 Difficulty Rogue Special Mode None Game No. 273 Rogue 269 Adventurer 4 Explorer 0 Win Type - Total 21 Types 9/2/6/0/0/0/2/2/0/0 Lore% 88 Gallery% 76 Achievement% 61 Wizard Run 0 Options --------- Layout 1 ASCII 0 Keyboard 0 Movement Arrows Keybinds 0 Fullscreen 1 Font 40/SmallcapsGlow Map View 50x40 Zoom Use 0% Tactical HUD 1 Map Filters NONE Filters NONE Steam 1 RUN: 0c5f2391-de03-4e16-9908-368ac9ed9285